[Event "Teplice Open 2019"]
[Site "Teplice"]
[Date "2019.06.22"]
[Round "8.22"]
[White "Mazur, Stefan"]
[Black "Sylvan, Jacob"]
[Result "1-0"]
[ECO "B47"]
[WhiteElo "2426"]
[BlackElo "2312"]
[Annotator "NA"]
[PlyCount "43"]
[EventDate "2019.06.15"]
[EventType "swiss"]
[EventCountry "CZE"]
[SourceTitle "playchess.com"]
[Source "ChessBase"]
[SourceQuality "1"]
[TimeControl "40/5400+30:1800+30"]

1. e4 {[%emt 0:00:00]} c5 {[%emt 0:00:00]} 2. Nf3 {[%emt 0:00:00]} e6 {[%emt 0:00:00]} 3. d4 {[%emt 0:00:00]} cxd4 {[%emt 0:00:00]} 4. Nxd4 {[%emt 0:00:00]} Nc6 {[%emt 0:00:00]} 5. Nc3 {[%emt 0:00:06]} Qc7 {[%emt 0:00:01]} 6. Qd3 {[%emt 0:00:09]} a6 {[%emt 0:07:51]} 7. Nxc6 {[%emt 0:00:19]} bxc6 {[%emt 0:00:22]} 8. Qg3 {[%emt 0:00:11]} Qxg3 {[%emt 0:00:20]} 9. hxg3 {[%emt 0:00:05]} d5 {[%emt 0:00:36]} 10. g4 {[%emt 0:00:11]} Nf6 {[%emt 0:03:37]} 11. g5 {[%emt 0:00:16]} Nxe4 {[%emt 0:10:17]} 12. Nxe4 {[%emt 0:00:13]} dxe4 {[%emt 0:00:04]} 13. Rh4 {[%emt 0:00:17]} Be7 {[%emt 0:00:48]} 14. Rxe4 {[%emt 0:00:46]} h6 {[%emt 0:01:57]} 15. gxh6 {[%emt 0:02:24]} gxh6 {[%emt 0:03:23]} 16. Be3 {[%emt 0:02:21]} h5 {[%emt 0:05:28]} 17. O-O-O {[%emt 0:07:53]} h4 {[%emt 0:01:51]} 18. Rc4 {[%emt 0:16:53]} Bb7 {[%emt 0:03:10]} 19. Rc3 {[%emt 0:01:23]} Rg8 {[%emt 0:07:54]} 20. Rb3 {[%emt 0:02:05]} Bc8 {[%emt 0:00:08]} 21. Be2 {[%emt 0:02:28]} Bd7 {[%emt 0:01:29]} 22. Bf3 {[%emt 0:02:00]} 1-0

[Event "Teplice Open 2019"]
[Site "Teplice"]
[Date "2019.06.22"]
[Round "8.23"]
[White "Pajeken, Jakob Leon"]
[Black "Morgunov, Daniel"]
[Result "1-0"]
[ECO "D02"]
[WhiteElo "2359"]
[BlackElo "2289"]
[Annotator "NA"]
[PlyCount "101"]
[EventDate "2019.06.15"]
[EventType "swiss"]
[EventCountry "CZE"]
[SourceTitle "playchess.com"]
[Source "ChessBase"]
[SourceQuality "1"]
[TimeControl "40/5400+30:1800+30"]

1. d4 {[%emt 0:00:00]} Nf6 {[%emt 0:00:01]} 2. Nf3 {[%emt 0:00:00]} e6 {[%emt 0:00:04]} 3. Bf4 {[%emt 0:00:00]} d5 {[%emt 0:00:04]} 4. e3 {[%emt 0:00:00]} c5 {[%emt 0:00:05]} 5. c3 {[%emt 0:00:02]} Nc6 {[%emt 0:00:04]} 6. Nbd2 {[%emt 0:00:03]} cxd4 {[%emt 0:00:04]} 7. exd4 {[%emt 0:00:04]} Nh5 {[%emt 0:00:04]} 8. Bg5 {[%emt 0:00:05]} f6 {[%emt 0:00:04]} 9. Be3 {[%emt 0:00:03]} Bd6 {[%emt 0:00:05]} 10. g3 {[%emt 0:00:05]} O-O {[%emt 0:00:36]} 11. Bd3 {[%emt 0:00:05]} f5 {[%emt 0:01:34]} 12. Ne5 {[%emt 0:00:05]} Nf6 {[%emt 0:01:13]} 13. f4 {[%emt 0:05:14]} Bd7 {[%emt 0:07:08]} 14. Qe2 {[%emt 0:06:10]} Be8 {[%emt 0:01:37]} 15. h3 {[%emt 0:02:09]} Rc8 {[%emt 0:07:55]} 16. Ndf3 {[%emt 0:08:37]} Ne4 {[%emt 0:06:10]} 17. Qg2 {[%emt 0:02:00]} Qb6 {[%emt 0:16:36]} 18. O-O {[%emt 0:04:35]} Nxe5 {[%emt 0:02:15]} 19. fxe5 {[%emt 0:02:00]} Be7 {[%emt 0:00:06]} 20. Rfe1 {[%emt 0:07:46]} Bb5 {[%emt 0:07:02]} 21. Bc2 {[%emt 0:01:45]} Qa6 {[%emt 0:01:02]} 22. a4 {[%emt 0:06:53]} Bd3 {[%emt 0:01:41]} 23. Bd1 {[%emt 0:00:11]} b5 {[%emt 0:01:19]} 24. Bd2 {[%emt 0:05:05]} g5 {[%emt 0:13:17]} 25. Re3 {[%emt 0:01:54]} b4 {[%emt 0:01:53]} 26. cxb4 {[%emt 0:01:07]} f4 {[%emt 0:08:44]} 27. gxf4 {[%emt 0:00:32]} Kh8 {[%emt 0:08:57]} 28. Ne1 {[%emt 0:12:29]} Bc4 {[%emt 0:00:00]} 29. f5 {[%emt 0:04:55]} exf5 {[%emt 0:00:00]} 30. Nc2 {[%emt 0:02:28]} f4 {[%emt 0:00:00]} 31. Rf3 {[%emt 0:02:02]} Qe6 {[%emt 0:01:12]} 32. Rfa3 {[%emt 0:03:57]} Qg6 {[%emt 0:01:48]} 33. Be1 {[%emt 0:02:32]} h5 {[%emt 0:00:47]} 34. Qf3 {[%emt 0:01:34]} Ng3 {[%emt 0:04:21]} 35. Bxg3 {[%emt 0:01:38]} fxg3 {[%emt 0:00:00]} 36. Qxh5+ {[%emt 0:00:05]} Qxh5 {[%emt 0:00:00]} 37. Bxh5 {[%emt 0:02:05]} Rf2 {[%emt 0:03:26]} 38. Ne3 {[%emt 0:03:29]} Bxb4 {[%emt 0:04:23]} 39. Nxc4 {[%emt 0:02:01]} Bxa3 {[%emt 0:03:02]} 40. Nxa3 {[%emt 0:00:32]} Rcf8 {[%emt 0:00:33]} 41. e6 {[%emt 0:01:35]} g4 {[%emt 0:04:28]} 42. e7 {[%emt 0:00:00]} gxh3 {[%emt 0:00:33]} 43. exf8=Q+ {[%emt 0:00:00]} Rxf8 {[%emt 0:00:03]} 44. Bg4 {[%emt 0:00:00]} h2+ {[%emt 0:04:25]} 45. Kg2 {[%emt 0:00:00]} Rf2+ {[%emt 0:00:40]} 46. Kxg3 {[%emt 0:00:00]} Rxb2 {[%emt 0:00:03]} 47. Nb5 {[%emt 0:00:00]} Kg7 {[%emt 0:01:36]} 48. Nc7 {[%emt 0:00:00]} a5 {[%emt 0:06:37]} 49. Bf3 {[%emt 0:00:51]} Rd2 {[%emt 0:00:43]} 50. Bg2 {[%emt 0:00:19]} Kg6 {[%emt 0:01:06]} 51. Nb5 {[%emt 0:00:06]} 1-0

[Event "Teplice Open 2019"]
[Site "Teplice"]
[Date "2019.06.22"]
[Round "8.24"]
[White "Hollan, Petr"]
[Black "Risting, Eivind Olav"]
[Result "1/2-1/2"]
[ECO "B63"]
[WhiteElo "2261"]
[BlackElo "2357"]
[Annotator "NA"]
[PlyCount "63"]
[EventDate "2019.06.15"]
[EventType "swiss"]
[EventCountry "CZE"]
[SourceTitle "playchess.com"]
[Source "ChessBase"]
[SourceQuality "1"]
[TimeControl "40/5400+30:1800+30"]

1. e4 {[%emt 1:14:25]} c5 {[%emt 0:04:59]} 2. Nf3 {[%emt 0:00:23]} d6 {[%emt 0:00:21]} 3. d4 {[%emt 0:00:06]} cxd4 {[%emt 0:00:04]} 4. Nxd4 {[%emt 0:00:06]} Nf6 {[%emt 0:00:13]} 5. Nc3 {[%emt 0:00:06]} Nc6 {[%emt 0:00:08]} 6. Bg5 {[%emt 0:00:07]} e6 {[%emt 0:00:32]} 7. Qd2 {[%emt 0:00:07]} Be7 {[%emt 0:00:38]} 8. f4 {[%emt 0:00:05]} h6 {[%emt 0:01:38]} 9. Bxf6 {[%emt 0:17:45]} Bxf6 {[%emt 0:15:11]} 10. Ndb5 {[%emt 0:06:43]} O-O {[%emt 0:02:19]} 11. Nxd6 {[%emt 0:07:29]} e5 {[%emt 0:14:05]} 12. Nxc8 {[%emt 0:21:05]} Rxc8 {[%emt 0:07:46]} 13. Qxd8 {[%emt 0:13:00]} Rfxd8 {[%emt 0:01:25]} 14. f5 {[%emt 0:00:07]} Nb4 {[%emt 0:03:55]} 15. Bd3 {[%emt 0:00:30]} Nxd3+ {[%emt 0:00:22]} 16. cxd3 {[%emt 0:00:08]} Rxd3 {[%emt 0:00:14]} 17. Ke2 {[%emt 0:00:25]} Rd4 {[%emt 0:00:36]} 18. Rhd1 {[%emt 0:02:23]} b5 {[%emt 0:08:12]} 19. a3 {[%emt 0:05:03]} a5 {[%emt 0:02:49]} 20. Kf3 {[%emt 0:02:35]} Rcc4 {[%emt 0:26:00]} 21. Nxb5 {[%emt 0:08:35]} Rxd1 {[%emt 0:04:40]} 22. Rxd1 {[%emt 0:00:06]} Rc2 {[%emt 0:00:09]} 23. b3 {[%emt 0:09:06]} Rb2 {[%emt 0:00:46]} 24. Rd3 {[%emt 0:00:34]} Be7 {[%emt 0:00:25]} 25. Rc3 {[%emt 0:03:05]} h5 {[%emt 0:00:32]} 26. h3 {[%emt 0:00:50]} h4 {[%emt 0:03:37]} 27. g3 {[%emt 0:01:10]} Rh2 {[%emt 0:01:16]} 28. Kg4 {[%emt 0:00:08]} Re2 {[%emt 0:00:22]} 29. Kf3 {[%emt 0:00:12]} Rh2 {[%emt 0:00:15]} 30. Kg4 {[%emt 0:00:18]} Re2 {[%emt 0:00:52]} 31. Kf3 {[%emt 0:00:06]} Rh2 {[%emt 0:00:33]} 32. Kg4 {[%emt 0:03:33]} 1/2-1/2

[Event "Teplice Open 2019"]
[Site "Teplice"]
[Date "2019.06.22"]
[Round "8.25"]
[White "Rubes, Jan"]
[Black "Freisler, Pavel"]
[Result "1-0"]
[ECO "A13"]
[WhiteElo "2352"]
[BlackElo "2246"]
[Annotator "NA"]
[PlyCount "49"]
[EventDate "2019.06.15"]
[EventType "swiss"]
[EventCountry "CZE"]
[SourceTitle "playchess.com"]
[Source "ChessBase"]
[SourceQuality "1"]
[TimeControl "40/5400+30:1800+30"]

1. c4 {[%emt 0:00:00]} e6 {[%emt 0:01:29]} 2. Nc3 {[%emt 0:00:00]} Bb4 {[%emt 0:00:39]} 3. e4 {[%emt 0:07:38]} c5 {[%emt 0:01:14]} 4. g3 {[%emt 0:01:20]} Nc6 {[%emt 0:02:04]} 5. Bg2 {[%emt 0:00:17]} Nge7 {[%emt 0:02:35]} 6. Nge2 {[%emt 0:02:24]} a6 {[%emt 0:12:26]} 7. O-O {[%emt 0:00:15]} Nd4 {[%emt 0:02:14]} 8. a3 {[%emt 0:09:18]} Ba5 {[%emt 0:02:10]} 9. Nxd4 {[%emt 0:00:26]} cxd4 {[%emt 0:00:07]} 10. Ne2 {[%emt 0:00:03]} Bb6 {[%emt 0:05:16]} 11. b4 {[%emt 0:04:59]} d6 {[%emt 0:00:56]} 12. Bb2 {[%emt 0:01:00]} e5 {[%emt 0:00:59]} 13. d3 {[%emt 0:00:03]} O-O {[%emt 0:12:37]} 14. f4 {[%emt 0:08:10]} f5 {[%emt 0:04:25]} 15. c5 {[%emt 0:09:35]} dxc5 {[%emt 0:00:23]} 16. bxc5 {[%emt 0:00:06]} Bxc5 {[%emt 0:04:42]} 17. Qb3+ {[%emt 0:00:09]} Kh8 {[%emt 0:00:09]} 18. fxe5 {[%emt 0:00:04]} Nc6 {[%emt 0:10:40]} 19. e6 {[%emt 0:02:16]} fxe4 {[%emt 0:05:34]} 20. Bxe4 {[%emt 0:00:04]} Re8 {[%emt 0:07:29]} 21. Rac1 {[%emt 0:03:17]} Qd6 {[%emt 0:02:35]} 22. Nf4 {[%emt 0:02:24]} Rb8 {[%emt 0:13:58]} 23. Qd1 {[%emt 0:12:14]} Qe5 {[%emt 0:01:45]} 24. Qg4 {[%emt 0:00:44]} Kg8 {[%emt 0:02:34]} 25. Bxh7+ {[%emt 0:01:32]} 1-0

[Event "Teplice Open 2019"]
[Site "Teplice"]
[Date "2019.06.22"]
[Round "8.26"]
[White "Morgunov, Marc"]
[Black "Navrotescu, Andreea-Cristiana"]
[Result "1/2-1/2"]
[ECO "A08"]
[WhiteElo "2351"]
[BlackElo "2233"]
[Annotator "NA"]
[PlyCount "85"]
[EventDate "2019.06.15"]
[EventType "swiss"]
[EventCountry "CZE"]
[SourceTitle "playchess.com"]
[Source "ChessBase"]
[SourceQuality "1"]
[TimeControl "40/5400+30:1800+30"]

1. e4 {[%emt 0:00:00]} e6 {[%emt 0:00:00]} 2. d3 {[%emt 0:02:26]} d5 {[%emt 0:00:01]} 3. Nd2 {[%emt 0:00:35]} c5 {[%emt 0:00:55]} 4. Ngf3 {[%emt 0:00:00]} Nf6 {[%emt 0:00:18]} 5. g3 {[%emt 0:00:00]} Nc6 {[%emt 0:00:16]} 6. Bg2 {[%emt 0:00:00]} g6 {[%emt 0:00:36]} 7. O-O {[%emt 0:00:02]} Bg7 {[%emt 0:00:04]} 8. Re1 {[%emt 0:00:40]} O-O {[%emt 0:00:10]} 9. c3 {[%emt 0:03:40]} a5 {[%emt 0:00:35]} 10. a4 {[%emt 0:02:23]} b6 {[%emt 0:00:29]} 11. Nb1 {[%emt 0:08:00]} Ba6 {[%emt 0:06:23]} 12. Na3 {[%emt 0:01:11]} dxe4 {[%emt 0:11:56]} 13. dxe4 {[%emt 0:02:09]} Qxd1 {[%emt 0:01:12]} 14. Rxd1 {[%emt 0:00:16]} Rad8 {[%emt 0:02:02]} 15. Re1 {[%emt 0:08:32]} Bd3 {[%emt 0:09:57]} 16. Bg5 {[%emt 0:01:13]} h6 {[%emt 0:01:18]} 17. Bxf6 {[%emt 0:00:38]} Bxf6 {[%emt 0:00:02]} 18. Bf1 {[%emt 0:01:02]} g5 {[%emt 0:02:14]} 19. h3 {[%emt 0:04:52]} h5 {[%emt 0:00:53]} 20. g4 {[%emt 0:10:33]} hxg4 {[%emt 0:00:27]} 21. hxg4 {[%emt 0:00:06]} Rd7 {[%emt 0:09:15]} 22. Bxd3 {[%emt 0:02:40]} Rxd3 {[%emt 0:00:02]} 23. Kg2 {[%emt 0:00:12]} Ne7 {[%emt 0:09:27]} 24. e5 {[%emt 0:17:14]} Bg7 {[%emt 0:00:50]} 25. Nxg5 {[%emt 0:01:19]} Ng6 {[%emt 0:01:39]} 26. Nc4 {[%emt 0:02:00]} Nf4+ {[%emt 0:07:42]} 27. Kf1 {[%emt 0:02:03]} f6 {[%emt 0:00:59]} 28. exf6 {[%emt 0:03:59]} Rxf6 {[%emt 0:00:24]} 29. Ne4 {[%emt 0:00:59]} Rh6 {[%emt 0:11:36]} 30. Ng3 {[%emt 0:00:50]} Rh2 {[%emt 0:05:17]} 31. Re3 {[%emt 0:17:13]} Rd8 {[%emt 0:00:01]} 32. Rae1 {[%emt 0:05:49]} Bh6 {[%emt 0:00:48]} 33. Rf3 {[%emt 0:00:23]} Rh4 {[%emt 0:00:35]} 34. Ne3 {[%emt 0:01:01]} Rd2 {[%emt 0:01:17]} 35. Ng2 {[%emt 0:00:06]} Rxg4 {[%emt 0:01:14]} 36. Nxf4 {[%emt 0:00:48]} Rxf4 {[%emt 0:00:24]} 37. Rxf4 {[%emt 0:00:35]} Bxf4 {[%emt 0:00:01]} 38. Nh5 {[%emt 0:00:14]} e5 {[%emt 0:02:33]} 39. Re2 {[%emt 0:00:35]} Rd1+ {[%emt 0:03:42]} 40. Kg2 {[%emt 0:00:06]} Bc1 {[%emt 0:06:44]} 41. Kf3 {[%emt 0:07:07]} Kf7 {[%emt 0:00:24]} 42. Kg4 {[%emt 0:05:08]} Rg1+ {[%emt 0:03:18]} 43. Ng3 {[%emt 0:00:07]} 1/2-1/2

[Event "Teplice Open 2019"]
[Site "Teplice"]
[Date "2019.06.22"]
[Round "8.27"]
[White "Pajeken, Wolfgang"]
[Black "Leisch, Lukas"]
[Result "1/2-1/2"]
[ECO "E74"]
[WhiteElo "2259"]
[BlackElo "2341"]
[Annotator "NA"]
[PlyCount "87"]
[EventDate "2019.06.15"]
[EventType "swiss"]
[EventCountry "CZE"]
[SourceTitle "playchess.com"]
[Source "ChessBase"]
[SourceQuality "1"]
[TimeControl "40/5400+30:1800+30"]

1. d4 {[%emt 0:00:00]} Nf6 {[%emt 0:01:46]} 2. c4 {[%emt 0:00:00]} g6 {[%emt 0:00:11]} 3. Nc3 {[%emt 0:00:26]} Bg7 {[%emt 0:00:48]} 4. e4 {[%emt 0:00:32]} d6 {[%emt 0:00:05]} 5. Be2 {[%emt 0:00:21]} O-O {[%emt 0:00:16]} 6. Bg5 {[%emt 0:00:05]} c5 {[%emt 0:01:14]} 7. d5 {[%emt 0:00:12]} h6 {[%emt 0:03:03]} 8. Bf4 {[%emt 0:00:59]} a6 {[%emt 0:02:03]} 9. Qd2 {[%emt 0:01:25]} Kh7 {[%emt 0:01:19]} 10. a4 {[%emt 0:02:33]} Ne8 {[%emt 0:01:38]} 11. Nf3 {[%emt 0:01:32]} e5 {[%emt 0:01:49]} 12. dxe6 {[%emt 0:01:34]} Bxe6 {[%emt 0:00:34]} 13. Nd5 {[%emt 0:02:47]} Nc6 {[%emt 0:04:47]} 14. a5 {[%emt 0:02:36]} Bxd5 {[%emt 0:03:58]} 15. exd5 {[%emt 0:00:28]} Nb4 {[%emt 0:01:06]} 16. O-O {[%emt 0:01:35]} f5 {[%emt 0:04:45]} 17. h4 {[%emt 0:04:33]} Nf6 {[%emt 0:01:45]} 18. Rfe1 {[%emt 0:06:20]} Ne4 {[%emt 0:02:00]} 19. Qc1 {[%emt 0:01:04]} Qf6 {[%emt 0:00:58]} 20. Rb1 {[%emt 0:00:39]} Rae8 {[%emt 0:09:02]} 21. g3 {[%emt 0:02:07]} Re7 {[%emt 0:07:16]} 22. Bf1 {[%emt 0:03:55]} Rfe8 {[%emt 0:01:08]} 23. Nd2 {[%emt 0:03:36]} Nxf2 {[%emt 0:13:00]} 24. Rxe7 {[%emt 0:00:09]} Qxe7 {[%emt 0:03:52]} 25. Kxf2 {[%emt 0:01:02]} g5 {[%emt 0:00:21]} 26. hxg5 {[%emt 0:00:35]} hxg5 {[%emt 0:00:21]} 27. Nf3 {[%emt 0:01:11]} gxf4 {[%emt 0:00:56]} 28. Qxf4 {[%emt 0:02:22]} Qf6 {[%emt 0:03:51]} 29. Ng5+ {[%emt 0:05:54]} Kg8 {[%emt 0:00:45]} 30. Ne6 {[%emt 0:00:18]} Rxe6 {[%emt 0:04:19]} 31. dxe6 {[%emt 0:00:14]} Qxe6 {[%emt 0:00:12]} 32. Rd1 {[%emt 0:04:06]} Bd4+ {[%emt 0:01:18]} 33. Rxd4 {[%emt 0:03:49]} cxd4 {[%emt 0:00:06]} 34. Qxd4 {[%emt 0:00:09]} Nc6 {[%emt 0:01:30]} 35. Qb6 {[%emt 0:02:21]} Qe7 {[%emt 0:05:07]} 36. Be2 {[%emt 0:07:02]} Ne5 {[%emt 0:02:57]} 37. b4 {[%emt 0:00:50]} f4 {[%emt 0:03:00]} 38. Qd4 {[%emt 0:09:29]} fxg3+ {[%emt 0:00:38]} 39. Kxg3 {[%emt 0:00:37]} Nc6 {[%emt 0:02:17]} 40. Qg4+ {[%emt 0:02:46]} Qg7 {[%emt 0:03:11]} 41. Bf3 {[%emt 0:33:12]} Nxb4 {[%emt 0:31:27]} 42. Bxb7 {[%emt 0:00:34]} Qxg4+ {[%emt 0:00:15]} 43. Kxg4 {[%emt 0:00:01]} Kf7 {[%emt 0:00:27]} 44. Kf5 {[%emt 0:02:01]} 1/2-1/2

[Event "Teplice Open 2019"]
[Site "Teplice"]
[Date "2019.06.22"]
[Round "8.28"]
[White "Serrano Salvador, Eduardo"]
[Black "Georgescu, Lena"]
[Result "1/2-1/2"]
[ECO "B00"]
[WhiteElo "2334"]
[BlackElo "2200"]
[Annotator "ChessBase"]
[PlyCount "204"]
[EventDate "2019.06.15"]
[EventType "swiss"]
[EventCountry "CZE"]
[SourceTitle "playchess.com"]
[Source "ChessBase"]
[SourceQuality "1"]
[TimeControl "40/5400+30:1800+30"]

1. d4 {[%emt 0:00:00]} Nf6 {[%emt 0:00:00]} 2. Nf3 {[%emt 0:00:00]} e6 {[%emt 0:00:00]} 3. Bg5 {[%emt 0:00:14]} b6 {[%emt 0:00:00]} 4. e4 {[%emt 0:01:44]} h6 {[%emt 0:01:32]} 5. Bxf6 {[%emt 0:00:06]} Qxf6 {[%emt 0:00:05]} 6. Nc3 {[%emt 0:00:12]} Bb7 {[%emt 0:02:20]} 7. Qd2 {[%emt 0:01:21]} Bb4 {[%emt 0:06:43]} 8. Bd3 {[%emt 0:02:39]} Nc6 {[%emt 0:03:42]} 9. a3 {[%emt 0:02:22]} Bxc3 {[%emt 0:00:05]} 10. Qxc3 {[%emt 0:00:11]} O-O-O {[%emt 0:03:43]} 11. O-O-O {[%emt 0:04:47]} g5 {[%emt 0:02:46]} 12. h3 {[%emt 0:07:08]} Kb8 {[%emt 0:05:52]} 13. Kb1 {[%emt 0:07:32]} Qg7 {[%emt 0:02:30]} 14. Qc4 {[%emt 0:07:14]} Ne7 {[%emt 0:02:44]} 15. Qb5 {[%emt 0:07:50]} Ng6 {[%emt 0:05:04]} 16. Rhe1 {[%emt 0:01:51]} Nh4 {[%emt 0:08:04]} 17. Nxh4 {[%emt 0:03:18]} gxh4 {[%emt 0:00:01]} 18. Bf1 {[%emt 0:00:32]} Qg5 {[%emt 0:02:34]} 19. d5 {[%emt 0:06:26]} Rhg8 {[%emt 0:05:20]} 20. dxe6 {[%emt 0:06:04]} Qxb5 {[%emt 0:00:21]} 21. Bxb5 {[%emt 0:00:10]} dxe6 {[%emt 0:00:08]} 22. f3 {[%emt 0:01:23]} c6 {[%emt 0:04:13]} 23. Bf1 {[%emt 0:00:29]} Kc7 {[%emt 0:00:07]} 24. Kc1 {[%emt 0:02:17]} e5 {[%emt 0:01:42]} 25. Rd2 {[%emt 0:01:25]} Bc8 {[%emt 0:03:01]} 26. Rxd8 {[%emt 0:04:30]} Kxd8 {[%emt 0:00:25]} 27. Kd2 {[%emt 0:01:13]} Ke7 {[%emt 0:00:23]} 28. Ke3 {[%emt 0:01:06]} Be6 {[%emt 0:01:25]} 29. Rd1 {[%emt 0:00:38]} a5 {[%emt 0:04:10]} 30. Kf2 {[%emt 0:02:47]} Ra8 {[%emt 0:04:09]} 31. b3 {[%emt 0:07:50]} Rg8 {[%emt 0:01:13]} 32. Ke3 {[%emt 0:05:52]} Bd7 {[%emt 0:00:56]} 33. Ra1 {[%emt 0:01:15]} Ra8 {[%emt 0:03:59]} 34. Kf2 {[%emt 0:04:20]} Be6 {[%emt 0:00:44]} 35. Rd1 {[%emt 0:00:50]} Rg8 {[%emt 0:00:24]} 36. Rd3 {[%emt 0:01:51]} Rg3 {[%emt 0:18:12]} 37. Rc3 {[%emt 0:04:13]} Kd6 {[%emt 0:01:11]} 38. Bc4 {[%emt 0:00:37]} Bxc4 {[%emt 0:01:46]} 39. Rxc4 {[%emt 0:00:06]} Rg8 {[%emt 0:01:41]} 40. Rc3 {[%emt 0:00:04]} h5 {[%emt 0:04:58]} 41. Rd3+ {[%emt 0:30:55]} Ke6 {[%emt 0:30:20]} 42. c4 {[%emt 0:01:45]} Ke7 {[%emt 0:00:00]} 43. Rd2 {[%emt 0:00:00]} f6 {[%emt 0:00:00]} 44. Ke3 {[%emt 0:00:00]} Ra8 {[%emt 0:00:00]} 45. Kf2 {[%emt 0:00:00]} Rg8 {[%emt 0:00:00]} 46. Rd1 {[%emt 0:00:00]} c5 {[%emt 0:00:00]} 47. Rd5 {[%emt 0:00:00]} a4 {[%emt 0:00:00]} 48. Rd3 {[%emt 0:00:00]} Ra8 {[%emt 0:00:00]} 49. g4 {[%emt 0:00:00]} hxg3+ {[%emt 0:00:00]} 50. Kxg3 {[%emt 0:00:00]} Kf7 {[%emt 0:00:00]} 51. bxa4 {[%emt 0:00:00]} Rxa4 {[%emt 0:00:00]} 52. Rc3 {[%emt 0:00:00]} Kg6 {[%emt 0:00:00]} 53. f4 {[%emt 0:00:00]} exf4+ {[%emt 0:00:00]} 54. Kxf4 {[%emt 0:00:00]} Ra8 {[%emt 0:00:00]} 55. Rg3+ {[%emt 0:00:00]} Kf7 {[%emt 0:00:00]} 56. Rb3 {[%emt 0:00:00]} Ra4 {[%emt 0:00:00]} 57. Kf5 {[%emt 0:00:00]} Rxc4 {[%emt 0:00:31]} 58. Rxb6 {[%emt 0:00:00]} Ke7 {[%emt 0:02:24]} 59. Re6+ {[%emt 0:00:00]} Kd7 {[%emt 0:00:06]} 60. Kxf6 {[%emt 0:00:00]} Rc3 {[%emt 0:00:09]} 61. Re5 {[%emt 0:00:00]} Rf3+ {[%emt 0:02:13]} 62. Rf5 {[%emt 0:00:00]} Rxh3 {[%emt 0:01:02]} 63. Rxc5 {[%emt 0:00:00]} Rxa3 {[%emt 0:01:38]} 64. Rxh5 {[%emt 0:00:00]} Rf3+ {[%emt 0:03:54]} 65. Rf5 {[%emt 0:00:00]} Re3 {[%emt 0:00:47]} 66. e5 {[%emt 0:00:00]} Ke8 {[%emt 0:00:18]} 67. Rh5 {[%emt 0:00:00]} Re1 {[%emt 0:00:28]} 68. Rh8+ {[%emt 0:00:00]} Kd7 {[%emt 0:00:04]} 69. Rh7+ {[%emt 0:00:00]} Ke8 {[%emt 0:00:12]} 70. Ke6 {[%emt 0:00:00]} Kf8 {[%emt 0:00:13]} 71. Rh8+ {[%emt 0:00:00]} Kg7 {[%emt 0:00:03]} 72. Rd8 {[%emt 0:00:00]} Re2 {[%emt 0:01:38]} 73. Re8 {[%emt 0:00:00]} Ra2 {[%emt 0:00:04]} 74. Rd8 {[%emt 0:00:00]} Re2 {[%emt 0:00:15]} 75. Rd5 {[%emt 0:00:00]} Kf8 {[%emt 0:01:23]} 76. Rd7 {[%emt 0:00:00]} Ke8 {[%emt 0:00:50]} 77. Re7+ {[%emt 0:00:31]} Kf8 {[%emt 0:00:10]} 78. Rf7+ {[%emt 0:00:05]} Ke8 {[%emt 0:00:10]} 79. Rf1 {[%emt 0:00:17]} Re3 {[%emt 0:00:50]} 80. Kf6 {[%emt 0:00:06]} Re2 {[%emt 0:00:43]} 81. Ra1 {[%emt 0:00:10]} Re3 {[%emt 0:00:50]} 82. Ra7 {[%emt 0:01:10]} Re1 {[%emt 0:00:16]} 83. Ke6 {[%emt 0:01:11]} Kf8 {[%emt 0:00:01]} 84. Ra8+ {[%emt 0:00:23]} Kg7 {[%emt 0:00:02]} 85. Re8 {[%emt 0:00:08]} Ra1 {[%emt 0:00:06]} 86. Re7+ {[%emt 0:00:23]} Kf8 {[%emt 0:00:40]} 87. Rd7 {[%emt 0:00:07]} Re1 {[%emt 0:00:50]} 88. Rd5 {[%emt 0:00:20]} Ke8 {[%emt 0:00:48]} 89. Kd6 {[%emt 0:01:11]} Re2 {[%emt 0:00:46]} 90. Ra5 {[%emt 0:00:34]} Re1 {[%emt 0:00:12]} 91. Ra2 {[%emt 0:01:10]} Kf7 {[%emt 0:00:47]} 92. Rf2+ {[%emt 0:00:07]} Ke8 {[%emt 0:00:18]} 93. Ke6 {[%emt 0:00:04]} Re3 {[%emt 0:00:30]} 94. Kf6 {[%emt 0:00:06]} Kd7 {[%emt 0:00:51]} 95. Rd2+ {[%emt 0:00:39]} Ke8 {[%emt 0:00:03]} 96. Ra2 {[%emt 0:00:05]} Re1 {[%emt 0:00:44]} 97. Ra7 {[%emt 0:00:48]} Re2 {[%emt 0:00:12]} 98. Re7+ {[%emt 0:02:14]} Kf8 {[%emt 0:00:57]} 99. Rd7 {[%emt 0:01:26]} Ke8 {[%emt 0:00:38]} 100. Rd6 {[%emt 0:00:40]} Re1 {[%emt 0:00:28]} 101. Re6+ {[%emt 0:00:06]} Kf8 {[%emt 0:00:16]} 102. Ra6 {[%emt 0:00:07]} Ke8 {[%emt 0:00:19]} 1/2-1/2

[Event "Teplice Open 2019"]
[Site "Teplice"]
[Date "2019.06.22"]
[Round "8.29"]
[White "Gavrilescu, David"]
[Black "Lyell, Mark"]
[Result "1-0"]
[ECO "C03"]
[WhiteElo "2475"]
[BlackElo "2222"]
[Annotator "ChessBase"]
[PlyCount "57"]
[EventDate "2019.06.15"]
[EventType "swiss"]
[EventCountry "CZE"]
[SourceTitle "playchess.com"]
[Source "ChessBase"]
[SourceQuality "1"]
[TimeControl "40/5400+30:1800+30"]

1. e4 {[%emt 0:00:00]} e6 {[%emt 0:05:51]} 2. d4 {[%emt 0:00:00]} d5 {[%emt 0:00:12]} 3. Nd2 {[%emt 0:00:20]} h6 {[%emt 0:00:08]} 4. Ngf3 {[%emt 0:01:36]} Nf6 {[%emt 0:00:15]} 5. Bd3 {[%emt 0:01:05]} c5 {[%emt 0:00:13]} 6. e5 {[%emt 0:03:36]} Nfd7 {[%emt 0:00:08]} 7. c4 {[%emt 0:00:05]} dxc4 {[%emt 0:01:33]} 8. Nxc4 {[%emt 0:00:21]} cxd4 {[%emt 0:06:47]} 9. O-O {[%emt 0:02:55]} Nc5 {[%emt 0:11:46]} 10. Bb1 {[%emt 0:06:14]} Nc6 {[%emt 0:00:47]} 11. Bf4 {[%emt 0:04:51]} b6 {[%emt 0:05:58]} 12. Qd2 {[%emt 0:12:30]} Qd5 {[%emt 0:04:30]} 13. Nd6+ {[%emt 0:11:47]} Bxd6 {[%emt 0:00:28]} 14. exd6 {[%emt 0:00:02]} g5 {[%emt 0:10:55]} 15. Bg3 {[%emt 0:01:12]} f5 {[%emt 0:03:02]} 16. b4 {[%emt 0:05:38]} Ne4 {[%emt 0:01:05]} 17. Bxe4 {[%emt 0:02:53]} fxe4 {[%emt 0:00:26]} 18. b5 {[%emt 0:00:05]} exf3 {[%emt 0:03:36]} 19. bxc6 {[%emt 0:00:18]} O-O {[%emt 0:09:18]} 20. Qd3 {[%emt 0:03:12]} Qf5 {[%emt 0:06:43]} 21. Qxd4 {[%emt 0:02:20]} Ba6 {[%emt 0:00:44]} 22. Rfd1 {[%emt 0:04:21]} Be2 {[%emt 0:08:22]} 23. d7 {[%emt 0:05:23]} Bxd1 {[%emt 0:14:19]} 24. c7 {[%emt 0:00:15]} e5 {[%emt 0:03:12]} 25. Qd5+ {[%emt 0:00:15]} Qf7 {[%emt 0:00:26]} 26. Rxd1 {[%emt 0:00:36]} Qxd5 {[%emt 0:01:09]} 27. Rxd5 {[%emt 0:00:02]} Rad8 {[%emt 0:00:58]} 28. cxd8=B {[%emt 0:00:13]} Rxd8 {[%emt 0:00:02]} 29. Bxe5 {[%emt 0:00:09]} 1-0